fUST/lending_fUST_20250527
["ID","MTS","AMOUNT","RATE_DAILY","PERIOD"]
[362439003,1748292634102,-439.64192906,0.00024624,11]
[362439004,1748292634112,-400.0,0.00024657,3]
[362439005,1748292634122,-221.75640387,0.00024657,3]
[362439006,1748292634133,-430.0,0.00024657,3]
[362439007,1748292634143,-430.0,0.00024657,3]
[362439008,1748292634154,-430.0,0.00024657,3]
[362439009,1748292634164,-450.1726966,0.00024657,3]
[362439010,1748292634173,-350.0,0.00024657,3]
[362439011,1748292634183,-430.0,0.00024657,3]
[362439012,1748292634193,-430.0,0.00024657,3]
[362439013,1748292634203,-490.0,0.00024657,3]
[362439014,1748292634217,-430.0,0.00024657,3]
[362439015,1748292634227,-430.0,0.00024657,3]
[362439016,1748292634236,-490.0,0.00024657,3]
[362439017,1748292634246,-430.0,0.00024657,3]
[362439018,1748292634257,-430.0,0.00024657,3]
[362439019,1748292634267,-490.0,0.00024657,3]
[362439020,1748292634277,-430.0,0.00024657,3]
[362439021,1748292634289,-570.0,0.00024657,3]
[362439022,1748292634300,-430.0,0.00024657,3]
[362439023,1748292634310,-470.0,0.00024657,3]
[362439024,1748292634320,-450.0,0.00024657,3]
[362439025,1748292634331,-400.0,0.00024657,3]
[362439026,1748292634340,-430.0,0.00024657,3]
[362439027,1748292634350,-430.0,0.00024657,3]
[362439028,1748292634360,-520.70669063,0.00024657,3]
[362439029,1748292634370,-430.0,0.00024657,3]
[362439030,1748292634380,-573.08,0.00024657,3]
[362439031,1748292634389,-430.0,0.00024657,3]
[362439032,1748292634400,-430.0,0.00024657,3]
[362439033,1748292634409,-490.0,0.00024657,3]
[362439034,1748292634419,-430.0,0.00024657,3]
[362439035,1748292634429,-400.0,0.00024657,3]
[362439036,1748292634440,-400.0,0.00024657,3]
[362439037,1748292634450,-430.0,0.00024657,3]
[362439038,1748292634459,-220.0,0.00024657,3]
[362439039,1748292634469,-430.0,0.00024657,3]
[362439040,1748292634479,-270.0,0.00024657,3]
[362439041,1748292634501,-182.25591215,0.00024657,3]
[362439042,1748292634512,-430.0,0.00024657,3]
[362439043,1748292634522,-168.72020561,0.00024657,3]
[362439044,1748292634533,-430.0,0.00024657,3]
[362439045,1748292634544,-250.0,0.00024657,3]
[362439046,1748292634554,-307.65016216,0.00024657,3]
[362439047,1748292634564,-250.0,0.00024657,3]
[362439048,1748292634574,-430.0,0.00024657,3]
[362439049,1748292634584,-430.0,0.00024657,3]
[362439050,1748292634594,-490.0,0.00024657,3]
[362439051,1748292634605,-430.0,0.00024657,3]
[362439052,1748292634615,-430.0,0.00024657,3]
[362439053,1748292634625,-300.0,0.00024657,3]
[362439054,1748292634635,-430.0,0.00024657,3]
[362439055,1748292634645,-430.0,0.00024657,3]
[362439056,1748292634655,-250.0,0.00024657,3]
[362439057,1748292634666,-400.90786718,0.00024657,3]
[362439058,1748292634676,-430.0,0.00024657,3]
[362439059,1748292634686,-430.0,0.00024657,3]
[362439060,1748292634696,-490.0,0.00024657,3]
[362439061,1748292634707,-430.0,0.00024657,3]
[362439062,1748292634717,-528.06,0.00024657,3]
[362439063,1748292634727,-430.0,0.00024657,3]
[362439064,1748292634738,-430.0,0.00024657,3]
[362439065,1748292634750,-450.0,0.00024657,3]
[362439066,1748292634761,-430.0,0.00024657,3]
[362439067,1748292634771,-430.0,0.00024657,3]
[362439068,1748292634782,-490.0,0.00024657,3]
[362439069,1748292634792,-430.0,0.00024657,3]
[362439070,1748292634802,-430.0,0.00024657,3]
[362439071,1748292634812,-430.0,0.00024657,3]
[362439072,1748292634823,-430.0,0.00024657,3]
[362439073,1748292634833,-430.0,0.00024657,3]
[362439074,1748292634844,-270.0,0.00024657,3]
[362439075,1748292634855,-431.2,0.00024657,3]
[362439076,1748292634865,-430.0,0.00024657,3]
[362439077,1748292634876,-430.0,0.00024657,3]
[362439078,1748292634886,-239.77,0.00024657,3]
[362439079,1748292634896,-300.0,0.00024657,3]
[362439080,1748292634906,-430.0,0.00024657,3]
[362439081,1748292634915,-430.0,0.00024657,3]
[362439082,1748292634926,-470.0,0.00024657,3]
[362439083,1748292634936,-430.0,0.00024657,3]
[362439084,1748292634946,-430.0,0.00024657,3]
[362439085,1748292634956,-223.87608503,0.00024657,3]
[362439086,1748292634966,-430.0,0.00024657,3]
[362439087,1748292634975,-430.0,0.00024657,3]
[362439088,1748292634985,-184.58857417,0.00024657,3]
[362439089,1748292634995,-578.54649738,0.00024657,3]
[362439090,1748292635005,-300.0,0.00024657,3]
[362439091,1748292635015,-430.0,0.00024657,3]
[362439092,1748292635025,-450.0,0.00024657,3]
[362439093,1748292635035,-430.0,0.00024657,3]
[362439094,1748292635046,-320.0,0.00024657,3]
[362439095,1748292635055,-551.46579146,0.00024657,3]
[362439096,1748292635065,-300.0,0.00024657,3]
[362439097,1748292635075,-430.0,0.00024657,3]
[362439098,1748292635085,-450.0,0.00024657,3]
[362439099,1748292635094,-423.52,0.00024657,3]
[362439100,1748292635108,-430.0,0.00024657,3]
[362439101,1748292635119,-450.0,0.00024657,3]
[362439102,1748292635128,-450.0,0.00024657,3]
[362439103,1748292635139,-420.0,0.00024657,3]
[362439104,1748292635149,-430.0,0.00024657,3]
[362439105,1748292635159,-430.0,0.00024657,3]
[362439106,1748292635169,-430.0,0.00024657,3]
[362439107,1748292635179,-356.68708832,0.00024657,3]
[362439108,1748292635188,-430.0,0.00024657,3]
[362439109,1748292635198,-430.0,0.00024657,3]
[362439110,1748292635211,-450.0,0.00024657,3]
[362439111,1748292635220,-430.0,0.00024657,3]
[362439112,1748292635230,-430.0,0.00024657,3]
[362439113,1748292635240,-450.0,0.00024657,3]
[362439114,1748292635250,-430.0,0.00024657,3]
[362439115,1748292635261,-470.0,0.00024657,3]
[362439116,1748292635272,-430.0,0.00024657,3]
[362439117,1748292635282,-210.36669454,0.00024657,3]
[362439118,1748292635294,-300.66701183,0.00024657,3]
[362439119,1748292635303,-430.0,0.00024657,3]
[362439120,1748292635313,-430.0,0.00024657,3]
[362439121,1748292635323,-430.0,0.00024657,3]
[362439122,1748292635333,-220.0,0.00024657,3]
[362439123,1748292635343,-430.0,0.00024657,3]
[362439124,1748292635354,-300.0,0.00024657,3]
[362439125,1748292635364,-430.0,0.00024657,3]
[362439126,1748292635373,-220.0,0.00024657,3]
[362439127,1748292635384,-430.0,0.00024657,3]
[362439128,1748292635393,-430.0,0.00024657,3]
[362439129,1748292635403,-270.0,0.00024657,3]
[362439130,1748292635413,-430.0,0.00024657,3]
[362439131,1748292635423,-300.0,0.00024657,3]
[362439132,1748292635434,-220.0,0.00024657,3]
[362439133,1748292635444,-430.0,0.00024657,3]
[362439134,1748292635455,-430.0,0.00024657,3]
[362439135,1748292635465,-220.0,0.00024657,3]
[362439136,1748292635475,-430.0,0.00024657,3]
[362439137,1748292635484,-430.0,0.00024657,3]
[362439138,1748292635494,-450.0,0.00024657,3]
[362439139,1748292635503,-430.0,0.00024657,3]
[362439140,1748292635514,-300.0,0.00024657,3]
[362439141,1748292635524,-220.0,0.00024657,3]
[362439142,1748292635534,-300.0,0.00024657,3]
[362439143,1748292635545,-200.0,0.00024657,3]
[362439144,1748292635555,-430.0,0.00024657,3]
[362439145,1748292635565,-329.79451511,0.00024657,3]
[362439146,1748292635575,-430.0,0.00024657,3]
[362439147,1748292635586,-430.0,0.00024657,3]
[362439148,1748292635598,-430.0,0.00024657,3]
[362439149,1748292635609,-256.2250846,0.00024657,3]
[362439150,1748292635622,-450.0,0.00024657,3]
[362439151,1748292635633,-430.0,0.00024657,3]
[362439152,1748292635646,-430.0,0.00024657,3]
[362439153,1748292635659,-470.0,0.00024657,3]
[362439154,1748292635669,-430.0,0.00024657,3]
[362439155,1748292635679,-430.0,0.00024657,3]
[362439156,1748292635691,-523.24934284,0.00024657,3]
[362439157,1748292635702,-430.0,0.00024657,3]
[362439158,1748292635714,-450.0,0.00024657,3]
[362439159,1748292635726,-406.24796802,0.00024657,3]
[362439160,1748292635736,-152.89878652,0.00024657,3]
[362439161,1748292635749,-430.0,0.00024657,3]
[362439162,1748292635760,-430.0,0.00024657,3]
[362439163,1748292635770,-470.0,0.00024657,3]
[362439164,1748292635783,-430.0,0.00024657,3]
[362439165,1748292635795,-430.0,0.00024657,3]
[362439166,1748292635806,-157.34241287,0.00024657,3]
[362439167,1748292635818,-430.0,0.00024657,3]
[362439168,1748292635829,-264.16613762,0.00024657,3]
[362439169,1748292635839,-430.0,0.00024657,3]
[362439170,1748292635848,-430.0,0.00024657,3]
[362439171,1748292635859,-430.0,0.00024657,3]
[362439172,1748292635869,-430.0,0.00024657,3]
[362439173,1748292635879,-430.0,0.00024657,3]
[362439174,1748292635889,-430.0,0.00024657,3]
[362439175,1748292635898,-430.0,0.00024657,3]
[362439176,1748292635908,-430.0,0.00024657,3]
[362439177,1748292635918,-430.0,0.00024657,3]
[362439178,1748292635927,-400.0,0.00024657,3]
[362439179,1748292635937,-430.0,0.00024657,3]
[362439180,1748292635946,-430.0,0.00024657,3]
[362439181,1748292635957,-400.0,0.00024657,3]
[362439182,1748292635967,-430.0,0.00024657,3]
[362439183,1748292635978,-430.0,0.00024657,3]
[362439184,1748292635988,-430.0,0.00024657,3]
[362439185,1748292636000,-430.0,0.00024657,3]
[362439186,1748292636010,-430.0,0.00024657,3]
[362439187,1748292636021,-430.0,0.00024657,3]
[362439188,1748292636032,-470.0,0.00024657,3]
[362439189,1748292636162,-300.0,0.00024657,3]
[362439190,1748292636186,-430.0,0.00024657,3]
[362439191,1748292636196,-430.0,0.00024657,3]
[362439192,1748292636208,-430.0,0.00024657,3]
[362439193,1748292636219,-430.0,0.00024657,3]
[362439194,1748292636229,-430.0,0.00024657,3]
[362439195,1748292636239,-430.0,0.00024657,3]
[362439196,1748292636248,-430.0,0.00024657,3]
[362439197,1748292636258,-490.0,0.00024657,3]
[362439198,1748292636267,-430.0,0.00024657,3]
[362439199,1748292636277,-370.0,0.00024657,3]
[362439200,1748292636288,-350.0,0.00024657,3]
[362439201,1748292636297,-250.0,0.00024657,3]
[362439202,1748292636308,-427.27,0.00024657,3]
[362439203,1748292636318,-420.0,0.00024657,3]
[362439204,1748292636329,-430.0,0.00024657,3]
[362439205,1748292636339,-430.0,0.00024657,3]
[362439206,1748292636348,-450.0,0.00024657,3]
[362439207,1748292636358,-430.0,0.00024657,3]
[362439208,1748292636368,-430.0,0.00024657,3]
[362439209,1748292636379,-430.0,0.00024657,3]
[362439210,1748292636389,-430.0,0.00024657,3]
[362439211,1748292636399,-450.0,0.00024657,3]
[362439212,1748292636410,-200.0,0.00024657,3]
[362439213,1748292636421,-430.0,0.00024657,3]
[362439214,1748292636432,-430.0,0.00024657,3]
[362439215,1748292636443,-430.0,0.00024657,3]
[362439216,1748292636454,-401.71574444,0.00024657,3]
[362439217,1748292636463,-430.0,0.00024657,3]
[362439218,1748292636475,-491.73171211,0.00024657,3]
[362439219,1748292636485,-430.0,0.00024657,3]
[362439220,1748292636494,-430.0,0.00024657,3]
[362439221,1748292636504,-430.0,0.00024657,3]
[362439222,1748292636515,-430.0,0.00024657,3]
[362439223,1748292636526,-430.0,0.00024657,3]
[362439224,1748292636537,-569.58137177,0.00024657,3]
[362439225,1748292636547,-1000.0,0.00024657,3]
[362439226,1748292636558,-1004.92510082,0.00024657,3]
[362439227,1748292636568,-430.0,0.00024657,3]
[362439228,1748292636580,-490.0,0.00024657,3]
[362439229,1748292636591,-450.0,0.00024657,3]
[362439230,1748292636600,-430.0,0.00024657,3]
[362439231,1748292636611,-430.0,0.00024657,3]
[362439232,1748292636620,-430.0,0.00024657,3]
[362439233,1748292636631,-430.0,0.00024657,3]
[362439234,1748292636641,-430.0,0.00024657,3]
[362439235,1748292636651,-430.0,0.00024657,3]
[362439236,1748292636661,-430.0,0.00024657,3]
[362439237,1748292636671,-430.0,0.00024657,3]
[362439238,1748292636680,-430.0,0.00024657,3]
[362439239,1748292636691,-430.0,0.00024657,3]
[362439240,1748292636701,-470.0,0.00024657,3]
[362439241,1748292636711,-430.0,0.00024657,3]
[362439242,1748292636721,-430.0,0.00024657,3]
[362439243,1748292636732,-268.8068805,0.00024657,3]
[362439280,1748292640930,-260.290267,0.00024299,15]
[362439281,1748292640940,-161.1931195,0.00024657,3]
[362439283,1748292640950,-378.5166135,0.00024657,3]
[362439292,1748292641038,-51.4833865,0.00024657,3]
[362439293,1748292641048,-430.0,0.00024657,3]
[362439294,1748292641061,-430.0,0.00024657,3]
[362439295,1748292641076,-430.0,0.00024657,3]
[362439296,1748292641091,-450.0,0.00024657,3]
[362439299,1748292641106,-430.0,0.00024657,3]
[362439300,1748292641120,-430.0,0.00024657,3]
[362439301,1748292641131,-430.0,0.00024657,3]
[362439302,1748292641144,-490.0,0.00024657,3]
[362439303,1748292641159,-540.0,0.00024657,3]
[362439304,1748292641172,-490.0,0.00024657,3]
[362439305,1748292641186,-400.0,0.00024657,3]
[362439306,1748292641199,-490.0,0.00024657,3]
[362439307,1748292641218,-490.0,0.00024657,3]
[362439308,1748292641232,-430.0,0.00024657,3]
[362439309,1748292641245,-430.0,0.00024657,3]
[362439310,1748292641261,-324.80810926,0.00024657,3]
[362439311,1748292641276,-490.0,0.00024657,3]
[362439312,1748292641291,-430.0,0.00024657,3]
[362439313,1748292641305,-504.51640924,0.00024657,3]
[362439314,1748292641321,-430.0,0.00024657,3]
[362439315,1748292641334,-490.0,0.00024657,3]
[362439316,1748292641346,-490.0,0.00024657,3]
[362439317,1748292641361,-490.0,0.00024657,3]
[362439318,1748292641375,-423.64732987,0.00024657,3]
[362439319,1748292641387,-490.0,0.00024657,3]
[362439320,1748292641401,-490.0,0.00024657,3]
[362439321,1748292641413,-186.54491634,0.00024657,3]
[362439326,1748292643792,-259.5,0.00024299,15]
[362439327,1748292643808,-240.5,0.00024657,3]
[362439333,1748292646677,-500.0,0.00024657,3]
[362439334,1748292646690,-2.95508366,0.00024657,3]
[362439335,1748292646704,-270.84491634,0.00024657,3]
[362439336,1748292646843,-189.15508366,0.00024657,3]
[362439337,1748292646855,-430.0,0.00024657,3]
[362439338,1748292646866,-220.8043371,0.00024657,3]
[362439339,1748292647001,-179.1956629,0.00024657,3]
[362439340,1748292647014,-430.0,0.00024657,3]
[362439341,1748292647026,-430.0,0.00024657,3]
[362439342,1748292647038,-125.14869592,0.00024657,3]
[362439343,1748292647053,-304.85130408,0.00024657,3]
[362439344,1748292647065,-313.79859011,0.00024657,3]
[362439345,1748292647077,-528.26599084,0.00024657,3]
[362439346,1748292647090,-490.0,0.00024657,3]
[362439347,1748292647102,-430.0,0.00024657,3]
[362439348,1748292647113,-430.0,0.00024657,3]
[362439349,1748292647125,-430.0,0.00024657,3]
[362439350,1748292647138,-430.0,0.00024657,3]
[362439351,1748292647150,-430.0,0.00024657,3]
[362439352,1748292647163,-413.08411497,0.00024657,3]
[362439354,1748293226094,414.32,0.000219,30]
[362439355,1748293545102,-185.0,0.00016438,3]
[362439356,1748293545122,-161.33939946,0.0002,2]
[362439357,1748293545143,-500.0,0.00021164,2]
[362439358,1748293545162,-207.88272831,0.00021164,2]
[362439359,1748293545182,-52.48760423,0.00021243,2]
[362439360,1748293626085,-300.0,0.00020938,2]
[362439361,1748293626109,-337.60042283,0.00020939,2]
[362439362,1748293627479,162.522068,0.00013699,2]
[362439364,1748293631084,-849.79856974,0.00020939,2]
[362439365,1748293634095,-479.3884056,0.00020939,2]
[362439366,1748293652079,-221.14963736,0.00020939,2]
[362439367,1748293773144,-174.0,0.00016438,3]
[362439368,1748293773168,-300.0,0.00020938,2]
[362439369,1748293773190,-5824.30430447,0.00020939,2]
[362439403,1748293831779,-608.89575932,0.00019064,2]
[362439405,1748293831789,-300.0,0.00020938,2]
[362439407,1748293831800,-1200.0,0.00020938,2]
[362439409,1748293831810,-5337.37834603,0.00020939,2]
[362439413,1748293831836,-7503.53598537,0.00020939,2]
[362439415,1748293831846,-500.0,0.00021164,2]
[362439417,1748293831855,-279.5601882,0.00021243,2]
[362439419,1748293831865,-2175.19083143,0.000219,2]
[362439451,1748293832135,-824.80916857,0.000219,2]
[362439454,1748293832146,-500.0,0.00021906,2]
[362439457,1748293832156,-500.0,0.00021906,2]
[362439460,1748293832166,-349.37482066,0.00021906,2]
[362439463,1748293832175,-500.0,0.00021906,2]
[362439464,1748293832184,-500.0,0.00021906,2]
[362439467,1748293832194,-500.0,0.00021906,2]
[362439469,1748293832203,-300.0,0.00021909,2]
[362439470,1748293832213,-5178.699775,0.0002191,2]
[362439472,1748293832222,-349.478,0.0002191,2]
[362439474,1748293832232,-999.92556039,0.00021968,2]
[362439476,1748293832241,-500.0,0.00021968,2]
[362439478,1748293832250,-500.0,0.00021968,2]
[362439480,1748293832261,-274.04002758,0.00021968,2]
[362439482,1748293832271,-500.0,0.00021968,2]
[362439484,1748293832280,-500.0,0.00021968,2]
[362439486,1748293832290,-337.17738239,0.00021968,2]
[362439489,1748293832299,-500.0,0.00021968,2]
[362439490,1748293832309,-500.0,0.00021968,2]
[362439492,1748293832318,-500.0,0.00021968,2]
[362439494,1748293832328,-500.0,0.00021968,2]
[362439496,1748293832337,-500.0,0.00021968,2]
[362439498,1748293832346,-500.0,0.00021968,2]
[362439501,1748293832356,-235.54716776,0.00021968,2]
[362439502,1748293832365,-339.9360144,0.00021968,2]
[362439504,1748293832375,-500.0,0.00021968,2]
[362439506,1748293832385,-500.0,0.00021968,2]
[362439508,1748293832394,-500.0,0.00021968,2]
[362439510,1748293832404,-500.0,0.00021968,2]
[362439513,1748293832414,-24900.0,0.00021969,2]
[362439515,1748293832423,-312.12656335,0.00022083,2]
[362439517,1748293832433,-464.7504553,0.00022666,2]
[362439519,1748293832442,-420.0,0.00022778,2]
[362439521,1748293832452,-305.343841,0.00022794,2]
[362439523,1748293832461,-12654.40314616,0.00022839,2]
[362439525,1748293832470,-229.15402412,0.00022839,2]
[362439527,1748293832480,-378.5,0.00022984,2]
[362439529,1748293832490,-207.4,0.00023106,2]
[362439531,1748293832499,-151.0,0.00023106,2]
[362439533,1748293832509,-151.0,0.00023106,2]
[362439535,1748293832519,-151.0,0.00023106,2]
[362439537,1748293832528,-151.0,0.00023106,2]
[362439539,1748293832538,-151.0,0.00023106,2]
[362439541,1748293832548,-151.0,0.00023106,2]
[362439543,1748293832558,-151.0,0.00023106,2]
[362439545,1748293832569,-151.0,0.00023106,2]
[362439547,1748293832579,-151.0,0.00023106,2]
[362439549,1748293832588,-151.0,0.00023106,2]
[362439551,1748293832598,-151.0,0.00023106,2]
[362439553,1748293832607,-151.0,0.00023106,2]
[362439555,1748293832617,-151.0,0.00023106,2]
[362439557,1748293832627,-151.0,0.00023106,2]
[362439559,1748293832638,-151.0,0.00023106,2]
[362439561,1748293832648,-2744.7,0.00023452,9]
[362439563,1748293832658,-2744.7,0.00023452,9]
[362439565,1748293832668,-2744.7,0.00023452,9]
[362439567,1748293832678,-2744.7,0.00023452,9]
[362439570,1748293832688,-420.0,0.0002381,2]
[362439571,1748293832697,-160.49780129,0.00023863,2]
[362439574,1748293832707,-894.64583333,0.0002397,2]
[362439576,1748293832717,-423.08503179,0.00023971,2]
[362439578,1748293832730,-273.52,0.0002398,3]
[362439580,1748293832740,-820.59,0.0002398,3]
[362439582,1748293832750,-100000.0,0.0002399,2]
[362439584,1748293832760,-608.89575932,0.00024064,2]
[362439586,1748293832769,-543.321704,0.00024163,3]
[362439589,1748293832791,-259.5,0.00024175,15]
[362439591,1748293832802,-306.0,0.00024192,2]
[362439593,1748293832813,-215.0738,0.00024475,2]
[362439595,1748293832823,-200.0,0.000245,2]
[362439597,1748293832834,-2943.25593725,0.00024557,2]
[362439599,1748293832844,-423.08503179,0.000246,3]
[362439601,1748293832854,-198.41,0.000246,2]
[362439602,1748293832865,-1000.0,0.000246,2]
[362439603,1748293832875,-9198.38265643,0.00024656,3]
[362439604,1748293832885,-5662.54370544,0.00024657,2]
[362439605,1748293832900,-3730.3121046,0.00024657,2]
[362439606,1748293832911,-12654.40314616,0.00024657,3]
[362439607,1748293832920,-229.15402412,0.00024657,3]
[362439608,1748293832930,-430.0,0.00024657,3]
[362439609,1748293832940,-430.0,0.00024657,3]
[362439610,1748293832950,-430.0,0.00024657,3]
[362439611,1748293832960,-500.0,0.00024657,3]
[362439612,1748293832970,-459.10495198,0.00024657,3]
[362439613,1748293832980,-430.0,0.00024657,3]
[362439614,1748293832990,-431.60979836,0.00024657,3]
[362439615,1748293833000,-183.12674276,0.00024657,3]
[362439616,1748293833010,-430.0,0.00024657,3]
[362439617,1748293833020,-430.0,0.00024657,3]
[362439618,1748293833029,-430.0,0.00024657,3]
[362439619,1748293833039,-430.0,0.00024657,3]
[362439620,1748293833049,-175.37416722,0.00024657,3]
[362439621,1748293833059,-370.0,0.00024657,3]
[362439622,1748293833069,-430.0,0.00024657,3]
[362439623,1748293833080,-430.0,0.00024657,3]
[362439624,1748293833089,-400.0,0.00024657,3]
[362439625,1748293833099,-430.0,0.00024657,3]
[362439626,1748293833109,-430.0,0.00024657,3]
[362439627,1748293833119,-430.0,0.00024657,3]
[362439628,1748293833129,-490.0,0.00024657,3]
[362439629,1748293833139,-400.92467331,0.00024657,3]
[362439630,1748293833149,-430.0,0.00024657,3]
[362439631,1748293833159,-430.0,0.00024657,3]
[362439632,1748293833168,-232.22211638,0.00024657,3]
[362439633,1748293833178,-430.0,0.00024657,3]
[362439634,1748293833187,-490.0,0.00024657,3]
[362439635,1748293833197,-430.0,0.00024657,3]
[362439636,1748293833207,-430.0,0.00024657,3]
[362439637,1748293833218,-430.0,0.00024657,3]
[362439638,1748293833227,-430.0,0.00024657,3]
[362439639,1748293833237,-430.0,0.00024657,3]
[362439640,1748293833246,-430.0,0.00024657,3]
[362439641,1748293833256,-570.0,0.00024657,3]
[362439642,1748293833267,-400.0,0.00024657,3]
[362439643,1748293833277,-490.0,0.00024657,3]
[362439644,1748293833287,-347.49206568,0.00024657,3]
[362439645,1748293833297,-430.0,0.00024657,3]
[362439646,1748293833307,-430.0,0.00024657,3]
[362439647,1748293833317,-430.0,0.00024657,3]
[362439648,1748293833327,-430.0,0.00024657,3]
[362439649,1748293833337,-430.0,0.00024657,3]
[362439650,1748293833348,-430.0,0.00024657,3]
[362439651,1748293833357,-430.0,0.00024657,3]
[362439652,1748293833367,-430.0,0.00024657,3]
[362439653,1748293833377,-430.0,0.00024657,3]
[362439654,1748293833387,-430.0,0.00024657,3]
[362439655,1748293833401,-203.756112,0.00024657,7]
[362439656,1748293833412,-430.0,0.00024657,3]
[362439657,1748293833422,-329.16087521,0.00024657,3]
[362439658,1748293833432,-490.0,0.00024657,3]
[362439659,1748293833442,-350.0,0.00024657,3]
[362439660,1748293833452,-430.0,0.00024657,3]
[362439661,1748293833462,-262.22291583,0.00024657,3]
[362439662,1748293833472,-430.0,0.00024657,3]
[362439663,1748293833482,-430.0,0.00024657,3]
[362439664,1748293833492,-430.0,0.00024657,3]
[362439665,1748293833502,-430.0,0.00024657,3]
[362439666,1748293833512,-430.0,0.00024657,3]
[362439667,1748293833522,-430.0,0.00024657,3]
[362439668,1748293833532,-172.30398629,0.00024657,3]
[362439669,1748293833542,-490.0,0.00024657,3]
[362439670,1748293833552,-430.0,0.00024657,3]
[362439671,1748293833562,-430.0,0.00024657,3]
[362439672,1748293833572,-430.0,0.00024657,3]
[362439673,1748293833582,-430.0,0.00024657,3]
[362439674,1748293833592,-430.0,0.00024657,3]
[362439675,1748293833603,-430.0,0.00024657,3]
[362439676,1748293833613,-430.0,0.00024657,3]
[362439677,1748293833624,-450.0,0.00024657,3]
[362439678,1748293833634,-430.0,0.00024657,3]
[362439679,1748293833644,-430.0,0.00024657,3]
[362439680,1748293833654,-490.0,0.00024657,3]
[362439681,1748293833663,-430.0,0.00024657,3]
[362439682,1748293833674,-152.79090163,0.00024657,3]
[362439683,1748293833684,-430.0,0.00024657,3]
[362439684,1748293833694,-504.34,0.00024657,3]
[362439685,1748293833704,-160.0,0.00024657,3]
[362439686,1748293833714,-430.0,0.00024657,3]
[362439687,1748293833727,-430.0,0.00024657,3]
[362439688,1748293833737,-448.16562938,0.00024657,3]
[362439689,1748293833748,-430.0,0.00024657,3]
[362439690,1748293833758,-463.08616608,0.00024657,3]
[362439691,1748293833770,-430.0,0.00024657,3]
[362439692,1748293833780,-430.0,0.00024657,3]
[362439693,1748293833790,-176.41573213,0.00024657,3]
[362439694,1748293833803,-400.0,0.00024657,3]
[362439695,1748293833813,-550.0,0.00024657,3]
[362439696,1748293833824,-430.0,0.00024657,3]
[362439697,1748293833834,-430.0,0.00024657,3]
[362439698,1748293833844,-430.0,0.00024657,3]
[362439699,1748293833854,-364.4,0.00024657,3]
[362439700,1748293833864,-466.07571363,0.00024657,3]
[362439701,1748293833874,-290.0,0.00024657,3]
[362439702,1748293833883,-442.03350281,0.00024657,3]
[362439703,1748293833894,-400.0,0.00024657,3]
[362439704,1748293833904,-430.0,0.00024657,3]
[362439705,1748293833914,-430.0,0.00024657,3]
[362439706,1748293833924,-450.0,0.00024657,3]
[362439707,1748293833933,-400.0,0.00024657,3]
[362439708,1748293833944,-430.0,0.00024657,3]
[362439709,1748293833954,-544.61416048,0.00024657,3]
[362439710,1748293833964,-430.0,0.00024657,3]
[362439711,1748293833973,-430.0,0.00024657,3]